[Event "Live Chess"]
[Site "Chess.com"]
[Date "2024.06.01"]
[Round "-"]
[White "Queensandpawns"]
[Black "CheckThis4"]
[Result "0-1"]
[WhiteElo "2375"]
[BlackElo "2675"]
[TimeControl "300"]
[EndTime "14:21:00 PDT"]
[Termination "CheckThis4 won by resignation"]

1. e4 {[%clk 0:04:58.1]} 1... c5 {[%clk 0:04:57.9]} 2. d4 {[%clk 0:04:56]} 2...
cxd4 {[%clk 0:04:56.3]} 3. c3 {[%clk 0:04:55.9]} 3... dxc3 {[%clk 0:04:54.9]} 4.
Bc4 {[%clk 0:04:55.6]} 4... e6 {[%clk 0:04:50]} 5. Nf3 {[%clk 0:04:54.3]} 5...
Nc6 {[%clk 0:04:47.9]} 6. O-O {[%clk 0:04:53.7]} 6... Bb4 {[%clk 0:04:20.7]} 7.
Nxc3 {[%clk 0:04:50.9]} 7... Nge7 {[%clk 0:04:18.7]} 8. a3 {[%clk 0:04:47]} 8...
Bxc3 {[%clk 0:04:17.1]} 9. bxc3 {[%clk 0:04:46.3]} 9... d5 {[%clk 0:04:13.9]}
10. exd5 {[%clk 0:04:44.2]} 10... exd5 {[%clk 0:04:12.7]} 11. Bd3 {[%clk
0:04:43.3]} 11... O-O {[%clk 0:04:09.1]} 12. Ng5 {[%clk 0:04:19.3]} 12... h6
{[%clk 0:04:05.2]} 13. Qh5 {[%clk 0:04:17.1]} 13... Ne5 {[%clk 0:03:30]} 14. Bc2
{[%clk 0:04:09.8]} 14... Bg4 {[%clk 0:03:25.5]} 15. Qh4 {[%clk 0:04:09.3]} 15...
N7g6 {[%clk 0:03:10.8]} 16. Bxg6 {[%clk 0:03:52.2]} 16... fxg6 {[%clk
0:03:07.5]} 17. Qg3 {[%clk 0:03:49.4]} 17... Qf6 {[%clk 0:02:42.1]} 18. h3
{[%clk 0:03:12.8]} 18... Bh5 {[%clk 0:02:04.3]} 19. Re1 {[%clk 0:03:01.7]} 19...
Rae8 {[%clk 0:02:02.6]} 20. f4 {[%clk 0:03:00.2]} 20... Nc4 {[%clk 0:01:35.5]}
21. Rxe8 {[%clk 0:02:55.8]} 21... Rxe8 {[%clk 0:01:35.4]} 22. Nf3 {[%clk
0:02:55.6]} 22... Qxc3 {[%clk 0:01:31.6]} 23. Rb1 {[%clk 0:02:50.3]} 23... Bxf3
{[%clk 0:01:29.4]} 24. Qxg6 {[%clk 0:02:41.7]} 24... Qe1+ {[%clk 0:01:19.5]} 25.
Kh2 {[%clk 0:02:39.5]} 25... Qe4 {[%clk 0:01:10.2]} 26. Bb2 {[%clk 0:02:13.2]}
26... Qxg6 {[%clk 0:01:06.1]} 0-1

[Event "Live Chess"]
[Site "Chess.com"]
[Date "2024.06.01"]
[Round "-"]
[White "ogpin"]
[Black "vincents82"]
[Result "0-1"]
[WhiteElo "2194"]
[BlackElo "2090"]
[TimeControl "300"]
[EndTime "14:21:01 PDT"]
[Termination "vincents82 won by resignation"]

1. a4 {[%clk 0:04:58.4]} 1... d5 {[%clk 0:04:54.4]} 2. Ra3 {[%clk 0:04:58.3]}
2... e6 {[%clk 0:04:53.4]} 3. g3 {[%clk 0:04:55.9]} 3... Bxa3 {[%clk 0:04:52]}
4. Nxa3 {[%clk 0:04:55.8]} 4... Nf6 {[%clk 0:04:50.9]} 5. b3 {[%clk 0:04:55.7]}
5... O-O {[%clk 0:04:48.6]} 6. Bb2 {[%clk 0:04:55.3]} 6... b6 {[%clk 0:04:48]}
7. f4 {[%clk 0:04:53.9]} 7... Nbd7 {[%clk 0:04:47.7]} 8. Nf3 {[%clk 0:04:53.3]}
8... Bb7 {[%clk 0:04:47.2]} 9. Bg2 {[%clk 0:04:52.8]} 9... Rc8 {[%clk
0:04:46.7]} 10. O-O {[%clk 0:04:52.3]} 10... c5 {[%clk 0:04:45.5]} 11. Nb5
{[%clk 0:04:49.3]} 11... a6 {[%clk 0:04:38.9]} 12. Nd6 {[%clk 0:04:48.6]} 12...
Rc7 {[%clk 0:04:38.3]} 13. Nxb7 {[%clk 0:04:48.5]} 13... Rxb7 {[%clk 0:04:37.5]}
14. Qa1 {[%clk 0:04:48.1]} 14... Rc7 {[%clk 0:04:34.1]} 15. f5 {[%clk
0:04:43.2]} 15... b5 {[%clk 0:04:31.2]} 16. Ng5 {[%clk 0:04:31.4]} 16... Qe7
{[%clk 0:04:27.8]} 17. Bh3 {[%clk 0:04:16.1]} 17... e5 {[%clk 0:04:24.9]} 18. d3
{[%clk 0:04:03]} 18... c4 {[%clk 0:04:21]} 19. bxc4 {[%clk 0:03:56.1]} 19...
bxc4 {[%clk 0:04:19.8]} 20. Ba3 {[%clk 0:03:54.8]} 20... Nc5 {[%clk 0:04:17.4]}
21. Kh1 {[%clk 0:03:48.4]} 21... Nfd7 {[%clk 0:04:16.2]} 22. Nf3 {[%clk
0:03:41.6]} 22... Qf6 {[%clk 0:04:11.4]} 23. e4 {[%clk 0:03:35.3]} 23... d4
{[%clk 0:04:03.9]} 24. Bc1 {[%clk 0:03:28.8]} 24... h6 {[%clk 0:04:01.7]} 25.
Qa3 {[%clk 0:03:15.8]} 25... Rb8 {[%clk 0:03:57.2]} 26. g4 {[%clk 0:03:12.2]}
26... cxd3 {[%clk 0:03:56]} 27. g5 {[%clk 0:03:10.3]} 27... Qc6 {[%clk
0:03:43.3]} 28. gxh6 {[%clk 0:03:01.8]} 28... Qxe4 {[%clk 0:03:41.4]} 29. Bg2
{[%clk 0:02:57.1]} 29... Qe2 {[%clk 0:03:38.2]} 30. Rg1 {[%clk 0:02:43]} 30...
Nf6 {[%clk 0:03:15.6]} 31. hxg7 {[%clk 0:02:09.8]} 31... Nce4 {[%clk 0:03:10.2]}
32. Rf1 {[%clk 0:02:01.5]} 32... Nf2+ {[%clk 0:03:04.1]} 33. Rxf2 {[%clk
0:02:00.7]} 33... Qxf2 {[%clk 0:03:03.1]} 34. Qd6 {[%clk 0:01:51.8]} 34... d2
{[%clk 0:02:43.7]} 35. Nxd2 {[%clk 0:01:23.5]} 35... Rcb7 {[%clk 0:02:06.3]} 36.
Nf1 {[%clk 0:00:44.4]} 36... Rb1 {[%clk 0:01:59]} 37. h3 {[%clk 0:00:39.1]}
37... Nh5 {[%clk 0:01:44.4]} 38. f6 {[%clk 0:00:25.4]} 38... Ng3+ {[%clk
0:01:35.8]} 39. Nxg3 {[%clk 0:00:24.4]} 39... Qxg3 {[%clk 0:01:35]} 40. Qa3
{[%clk 0:00:19.3]} 40... Qxa3 {[%clk 0:01:31.9]} 0-1

[Event "Live Chess"]
[Site "Chess.com"]
[Date "2024.06.01"]
[Round "-"]
[White "lateforthesky"]
[Black "Rusty_Bridges"]
[Result "1-0"]
[WhiteElo "2155"]
[BlackElo "1472"]
[TimeControl "300"]
[EndTime "14:21:04 PDT"]
[Termination "lateforthesky won by checkmate"]

1. e4 {[%clk 0:04:57.5]} 1... d6 {[%clk 0:04:56.5]} 2. d4 {[%clk 0:04:54.5]}
2... Nf6 {[%clk 0:04:55.3]} 3. Nc3 {[%clk 0:04:52]} 3... Nbd7 {[%clk 0:04:54.5]}
4. f4 {[%clk 0:04:49.9]} 4... h6 {[%clk 0:04:52.8]} 5. Nf3 {[%clk 0:04:48.7]}
5... b6 {[%clk 0:04:50.6]} 6. Bc4 {[%clk 0:04:46.3]} 6... Bb7 {[%clk 0:04:48.9]}
7. Qe2 {[%clk 0:04:45.5]} 7... a6 {[%clk 0:04:44.5]} 8. e5 {[%clk 0:04:43.9]}
8... dxe5 {[%clk 0:04:43]} 9. fxe5 {[%clk 0:04:38.1]} 9... Bxf3 {[%clk 0:04:41]}
10. Qxf3 {[%clk 0:04:27.4]} 10... Ng8 {[%clk 0:04:38.8]} 11. Qxf7# {[%clk
0:04:25.1]} 1-0

[Event "Live Chess"]
[Site "Chess.com"]
[Date "2024.06.01"]
[Round "-"]
[White "LL220284LL"]
[Black "RichardABates"]
[Result "1-0"]
[WhiteElo "2541"]
[BlackElo "2204"]
[TimeControl "300"]
[EndTime "14:21:07 PDT"]
[Termination "LL220284LL won on time"]

1. b3 {[%clk 0:04:57.3]} 1... Nf6 {[%clk 0:04:54.5]} 2. Bb2 {[%clk 0:04:56.9]}
2... g6 {[%clk 0:04:53.1]} 3. g3 {[%clk 0:04:44.8]} 3... Bg7 {[%clk 0:04:51.3]}
4. Bg2 {[%clk 0:04:44.7]} 4... O-O {[%clk 0:04:49.8]} 5. Nf3 {[%clk 0:04:44.1]}
5... c5 {[%clk 0:04:48.1]} 6. O-O {[%clk 0:04:43.5]} 6... Nc6 {[%clk 0:04:46.5]}
7. d3 {[%clk 0:04:40.2]} 7... d6 {[%clk 0:04:41.7]} 8. Nbd2 {[%clk 0:04:36.9]}
8... e5 {[%clk 0:04:38.6]} 9. e3 {[%clk 0:04:35.7]} 9... Re8 {[%clk 0:04:35.8]}
10. Re1 {[%clk 0:04:34.9]} 10... d5 {[%clk 0:04:34.1]} 11. a3 {[%clk 0:04:31.8]}
11... e4 {[%clk 0:04:26.5]} 12. dxe4 {[%clk 0:04:26.8]} 12... dxe4 {[%clk
0:04:25.2]} 13. Ng5 {[%clk 0:04:23.7]} 13... Bg4 {[%clk 0:04:21.7]} 14. Qc1
{[%clk 0:04:19.9]} 14... Bf5 {[%clk 0:04:05.5]} 15. Nc4 {[%clk 0:04:18.3]} 15...
h6 {[%clk 0:04:00.7]} 16. Rd1 {[%clk 0:04:17.2]} 16... Qc7 {[%clk 0:03:55.6]}
17. Nh3 {[%clk 0:04:15.2]} 17... g5 {[%clk 0:03:48]} 18. Nd6 {[%clk 0:04:10]}
18... Bxh3 {[%clk 0:03:34.4]} 19. Nxe8 {[%clk 0:04:08.8]} 19... Nxe8 {[%clk
0:03:28.3]} 20. Bxh3 {[%clk 0:04:07.4]} 20... Bxb2 {[%clk 0:03:16.6]} 21. Qxb2
{[%clk 0:04:07.3]} 21... Ne5 {[%clk 0:03:12.8]} 22. Bg2 {[%clk 0:04:03.6]} 22...
Nf6 {[%clk 0:03:01.3]} 23. Rd2 {[%clk 0:03:58.5]} 23... Re8 {[%clk 0:02:53.3]}
24. Rad1 {[%clk 0:03:57.6]} 24... Qc8 {[%clk 0:02:46.4]} 25. Rd6 {[%clk
0:03:53.4]} 25... Qf5 {[%clk 0:02:42.2]} 26. Qc3 {[%clk 0:03:45.2]} 26... Nfg4
{[%clk 0:02:33.1]} 27. Qd2 {[%clk 0:03:36.7]} 27... h5 {[%clk 0:02:23.8]} 28. h3
{[%clk 0:03:32.1]} 28... Nf6 {[%clk 0:02:21.5]} 29. Rd8 {[%clk 0:03:30.6]} 29...
Rxd8 {[%clk 0:02:18.9]} 30. Qxd8+ {[%clk 0:03:30.5]} 30... Kg7 {[%clk
0:02:18.2]} 31. Qd2 {[%clk 0:03:21.2]} 31... h4 {[%clk 0:02:08.5]} 32. g4 {[%clk
0:03:16.8]} 32... Nf3+ {[%clk 0:02:07.2]} 33. Kh1 {[%clk 0:02:46.9]} 33... Nxg4
{[%clk 0:01:57.4]} 34. hxg4 {[%clk 0:02:44]} 34... Qxg4 {[%clk 0:01:56.3]} 35.
Qc3+ {[%clk 0:02:36]} 35... f6 {[%clk 0:01:39.9]} 36. Rd6 {[%clk 0:02:26.5]}
36... Qf5 {[%clk 0:01:29.3]} 37. Qc4 {[%clk 0:01:31.1]} 37... h3 {[%clk
0:01:24]} 38. Qe6 {[%clk 0:01:09.9]} 38... hxg2+ {[%clk 0:01:10.3]} 39. Kxg2
{[%clk 0:01:02.1]} 39... Nh4+ {[%clk 0:01:01.7]} 40. Kf1 {[%clk 0:00:59]} 40...
Qf3 {[%clk 0:00:54.3]} 41. Qe7+ {[%clk 0:00:37.3]} 41... Kg6 {[%clk 0:00:43.3]}
42. Qe8+ {[%clk 0:00:32.8]} 42... Kf5 {[%clk 0:00:32.5]} 43. Qe6+ {[%clk
0:00:29.8]} 43... Kg6 {[%clk 0:00:31.3]} 44. Qg8+ {[%clk 0:00:28.4]} 44... Kf5
{[%clk 0:00:30]} 45. Rd5+ {[%clk 0:00:27.2]} 45... Kg4 {[%clk 0:00:27.7]} 46.
Qe6+ {[%clk 0:00:21.9]} 46... Kh5 {[%clk 0:00:26.4]} 47. Qf7+ {[%clk 0:00:19.6]}
47... Kg4 {[%clk 0:00:25]} 48. Qd7+ {[%clk 0:00:18.7]} 48... Kh5 {[%clk
0:00:22.6]} 49. Ke1 {[%clk 0:00:15.7]} 49... Ng2+ {[%clk 0:00:19.9]} 50. Kd2
{[%clk 0:00:15]} 50... Qxf2+ {[%clk 0:00:18.9]} 51. Kc1 {[%clk 0:00:14.4]} 51...
Nxe3 {[%clk 0:00:16.1]} 52. Qh7+ {[%clk 0:00:12.6]} 52... Kg4 {[%clk 0:00:14.8]}
53. Qd7+ {[%clk 0:00:12.2]} 53... f5 {[%clk 0:00:13.3]} 54. Rd2 {[%clk
0:00:11.1]} 54... Qe1+ {[%clk 0:00:11.8]} 55. Kb2 {[%clk 0:00:10.7]} 55... Kf3
{[%clk 0:00:09.9]} 56. Rd6 {[%clk 0:00:08.7]} 56... f4 {[%clk 0:00:07.7]} 57.
Qh3+ {[%clk 0:00:07.7]} 57... Qg3 {[%clk 0:00:06.7]} 58. Qh1+ {[%clk 0:00:07.3]}
58... Qg2 {[%clk 0:00:05.6]} 59. Qxg2+ {[%clk 0:00:04.2]} 59... Kxg2 {[%clk
0:00:04.5]} 60. Rg6 {[%clk 0:00:03.9]} 60... f3 {[%clk 0:00:03.8]} 61. Rxg5+
{[%clk 0:00:03.7]} 61... Kh3 {[%clk 0:00:03.4]} 62. Rxc5 {[%clk 0:00:03.6]}
62... f2 {[%clk 0:00:02.7]} 63. Re5 {[%clk 0:00:03.5]} 63... f1=Q {[%clk
0:00:01.3]} 64. Rxe4 {[%clk 0:00:03.4]} 1-0

[Event "Live Chess"]
[Site "Chess.com"]
[Date "2024.06.01"]
[Round "-"]
[White "kylet1990"]
[Black "oscalik"]
[Result "0-1"]
[WhiteElo "734"]
[BlackElo "2328"]
[TimeControl "300"]
[EndTime "14:21:25 PDT"]
[Termination "oscalik won by checkmate"]

1. e4 {[%clk 0:04:59.5]} 1... c5 {[%clk 0:04:52.8]} 2. Nf3 {[%clk 0:04:57.3]}
2... Nf6 {[%clk 0:04:51.6]} 3. e5 {[%clk 0:04:55.6]} 3... Nd5 {[%clk 0:04:50.8]}
4. Bc4 {[%clk 0:04:53.4]} 4... Nb6 {[%clk 0:04:49.6]} 5. Bb3 {[%clk 0:04:51.3]}
5... c4 {[%clk 0:04:48.4]} 6. Qe2 {[%clk 0:04:41]} 6... cxb3 {[%clk 0:04:47]} 7.
axb3 {[%clk 0:04:39.4]} 7... d5 {[%clk 0:04:43.7]} 8. d4 {[%clk 0:04:37.3]} 8...
Bg4 {[%clk 0:04:42.3]} 9. h3 {[%clk 0:04:35.9]} 9... Bxf3 {[%clk 0:04:41.3]} 10.
Qxf3 {[%clk 0:04:35.3]} 10... e6 {[%clk 0:04:41.2]} 11. Nc3 {[%clk 0:04:33.2]}
11... Nc6 {[%clk 0:04:40.5]} 12. Bf4 {[%clk 0:04:29.5]} 12... Nxd4 {[%clk
0:04:38.9]} 13. Qd3 {[%clk 0:04:22.9]} 13... Nc6 {[%clk 0:04:31]} 14. O-O {[%clk
0:04:19.9]} 14... Be7 {[%clk 0:04:26.5]} 15. Ne2 {[%clk 0:04:09.1]} 15... O-O
{[%clk 0:04:23.1]} 16. Ng3 {[%clk 0:04:06.7]} 16... Bg5 {[%clk 0:04:21.3]} 17.
Bxg5 {[%clk 0:04:01.4]} 17... Qxg5 {[%clk 0:04:21.2]} 18. f4 {[%clk 0:03:58.6]}
18... Qg6 {[%clk 0:04:17.8]} 19. f5 {[%clk 0:03:54.4]} 19... exf5 {[%clk
0:04:17.1]} 20. Nxf5 {[%clk 0:03:51]} 20... Rfe8 {[%clk 0:04:13.1]} 21. Qf3
{[%clk 0:03:42]} 21... Nxe5 {[%clk 0:04:08.2]} 22. Qf4 {[%clk 0:03:35.6]} 22...
f6 {[%clk 0:03:55.7]} 23. Nh4 {[%clk 0:03:32.7]} 23... Qe4 {[%clk 0:03:52]} 24.
Qg3 {[%clk 0:03:22.3]} 24... Ng6 {[%clk 0:03:46.5]} 25. Nxg6 {[%clk 0:03:18.3]}
25... Qxg6 {[%clk 0:03:44.3]} 26. Qc7 {[%clk 0:03:14.3]} 26... Rac8 {[%clk
0:03:36.9]} 27. Qxb7 {[%clk 0:03:11.8]} 27... Rxc2 {[%clk 0:03:36]} 28. Qxa7
{[%clk 0:03:08.8]} 28... Qxg2# {[%clk 0:03:34]} 0-1

[Event "Live Chess"]
[Site "Chess.com"]
[Date "2024.06.01"]
[Round "-"]
[White "WelshTiger"]
[Black "AndyJWise"]
[Result "1-0"]
[WhiteElo "2516"]
[BlackElo "1045"]
[TimeControl "300"]
[EndTime "14:21:46 PDT"]
[Termination "WelshTiger won by checkmate"]

1. e4 {[%clk 0:04:56.8]} 1... c6 {[%clk 0:04:58.2]} 2. d4 {[%clk 0:04:55.5]}
2... d5 {[%clk 0:04:56.4]} 3. e5 {[%clk 0:04:54.6]} 3... Bf5 {[%clk 0:04:53.4]}
4. h4 {[%clk 0:04:53.3]} 4... h5 {[%clk 0:04:51.6]} 5. c4 {[%clk 0:04:51.7]}
5... e6 {[%clk 0:04:50.1]} 6. Nc3 {[%clk 0:04:50.8]} 6... Ne7 {[%clk 0:04:47.1]}
7. Bg5 {[%clk 0:04:49]} 7... Qb6 {[%clk 0:04:38.9]} 8. Rc1 {[%clk 0:04:42.1]}
8... Nd7 {[%clk 0:04:31.7]} 9. Qd2 {[%clk 0:04:11.9]} 9... Nc8 {[%clk
0:04:29.4]} 10. c5 {[%clk 0:04:09.4]} 10... Qc7 {[%clk 0:04:24.1]} 11. Nge2
{[%clk 0:04:05.1]} 11... Be7 {[%clk 0:04:14.5]} 12. Ng3 {[%clk 0:04:01.3]} 12...
Bxg5 {[%clk 0:04:09.1]} 13. hxg5 {[%clk 0:03:52.6]} 13... h4 {[%clk 0:04:06.5]}
14. Nxf5 {[%clk 0:03:43.6]} 14... exf5 {[%clk 0:04:05.4]} 15. Qf4 {[%clk
0:03:42]} 15... g6 {[%clk 0:04:02.6]} 16. Rxh4 {[%clk 0:03:40.8]} 16... Rxh4
{[%clk 0:04:00.7]} 17. Qxh4 {[%clk 0:03:39.9]} 17... Nxe5 {[%clk 0:03:58]} 18.
dxe5 {[%clk 0:03:36.1]} 18... Qxe5+ {[%clk 0:03:55.7]} 19. Be2 {[%clk
0:03:35.5]} 19... Ke7 {[%clk 0:03:50]} 20. Kf1 {[%clk 0:03:26.3]} 20... Qg7
{[%clk 0:03:40.1]} 21. Re1 {[%clk 0:03:24.2]} 21... Kd7 {[%clk 0:03:37.7]} 22.
Qf4 {[%clk 0:03:20.4]} 22... b6 {[%clk 0:03:27.6]} 23. Nxd5 {[%clk 0:03:09.4]}
23... bxc5 {[%clk 0:03:23]} 24. Nf6+ {[%clk 0:03:06.7]} 24... Kd8 {[%clk
0:03:17.4]} 25. Rd1+ {[%clk 0:03:05.2]} 25... Ke7 {[%clk 0:03:14]} 26. Rd7+
{[%clk 0:03:02.4]} 26... Ke6 {[%clk 0:03:08.1]} 27. Bc4# {[%clk 0:03:00]} 1-0

[Event "Live Chess"]
[Site "Chess.com"]
[Date "2024.06.01"]
[Round "-"]
[White "chessfiction"]
[Black "GwaryTek"]
[Result "1-0"]
[WhiteElo "2377"]
[BlackElo "1918"]
[TimeControl "300"]
[EndTime "14:21:48 PDT"]
[Termination "chessfiction won by resignation"]

1. Nf3 {[%clk 0:04:56.4]} 1... d5 {[%clk 0:04:55.2]} 2. g3 {[%clk 0:04:53.6]}
2... c5 {[%clk 0:04:49.2]} 3. Bg2 {[%clk 0:04:51.4]} 3... Nc6 {[%clk 0:04:46.5]}
4. O-O {[%clk 0:04:51.3]} 4... e5 {[%clk 0:04:43.7]} 5. d3 {[%clk 0:04:49.8]}
5... Nge7 {[%clk 0:04:42.4]} 6. e4 {[%clk 0:04:48.7]} 6... d4 {[%clk 0:04:41.2]}
7. c3 {[%clk 0:04:46.6]} 7... Ng6 {[%clk 0:04:39.5]} 8. Na3 {[%clk 0:04:44]}
8... Be7 {[%clk 0:04:36.9]} 9. cxd4 {[%clk 0:04:41.7]} 9... cxd4 {[%clk
0:04:36.8]} 10. Bd2 {[%clk 0:04:40.2]} 10... O-O {[%clk 0:04:30]} 11. Rc1 {[%clk
0:04:39.7]} 11... Be6 {[%clk 0:04:20.5]} 12. Nc4 {[%clk 0:04:37.5]} 12... f6
{[%clk 0:04:15.7]} 13. a4 {[%clk 0:04:36]} 13... Qd7 {[%clk 0:04:12.9]} 14. a5
{[%clk 0:04:34.6]} 14... Kh8 {[%clk 0:04:09.8]} 15. h4 {[%clk 0:04:32.9]} 15...
Bh3 {[%clk 0:04:05.9]} 16. h5 {[%clk 0:04:30.8]} 16... Bxg2 {[%clk 0:03:33.4]}
17. Kxg2 {[%clk 0:04:28.5]} 17... Nf4+ {[%clk 0:03:29]} 18. gxf4 {[%clk
0:04:26.7]} 18... Qg4+ {[%clk 0:03:26.7]} 19. Kh1 {[%clk 0:04:25.6]} 19... f5
{[%clk 0:02:58.4]} 20. Nh2 {[%clk 0:04:23.9]} 20... Qh3 {[%clk 0:02:52.9]} 21.
Qf3 {[%clk 0:04:21.4]} 1-0

[Event "Live Chess"]
[Site "Chess.com"]
[Date "2024.06.01"]
[Round "-"]
[White "ShanthamGrarks"]
[Black "wadsy27"]
[Result "0-1"]
[WhiteElo "1792"]
[BlackElo "2537"]
[TimeControl "300"]
[EndTime "14:21:55 PDT"]
[Termination "wadsy27 won on time"]

1. d4 {[%clk 0:04:56.6]} 1... Nf6 {[%clk 0:04:59.2]} 2. Nc3 {[%clk 0:04:53.7]}
2... g6 {[%clk 0:04:58.6]} 3. Nf3 {[%clk 0:04:52.9]} 3... d5 {[%clk 0:04:57.9]}
4. Bf4 {[%clk 0:04:52]} 4... c6 {[%clk 0:04:57.4]} 5. e3 {[%clk 0:04:51.1]} 5...
Bg7 {[%clk 0:04:56.5]} 6. h3 {[%clk 0:04:49.8]} 6... O-O {[%clk 0:04:53.8]} 7.
Bd3 {[%clk 0:04:47.4]} 7... Nbd7 {[%clk 0:04:49.1]} 8. O-O {[%clk 0:04:40.5]}
8... Re8 {[%clk 0:04:48.5]} 9. Ne5 {[%clk 0:04:37.7]} 9... Nxe5 {[%clk
0:04:47.7]} 10. Bxe5 {[%clk 0:04:36.8]} 10... Nd7 {[%clk 0:04:45.5]} 11. Bxg7
{[%clk 0:04:35.8]} 11... Kxg7 {[%clk 0:04:45.4]} 12. f4 {[%clk 0:04:31.5]} 12...
Nf6 {[%clk 0:04:44.6]} 13. g4 {[%clk 0:04:27.3]} 13... h5 {[%clk 0:04:35.5]} 14.
g5 {[%clk 0:03:25]} 14... Ne4 {[%clk 0:04:34.5]} 15. Bxe4 {[%clk 0:03:18.1]}
15... dxe4 {[%clk 0:04:33.8]} 16. Nxe4 {[%clk 0:03:12.1]} 16... Bxh3 {[%clk
0:04:31.3]} 17. Rf2 {[%clk 0:03:10.9]} 17... Qd5 {[%clk 0:04:22.5]} 18. Qf3
{[%clk 0:03:05.1]} 18... Bf5 {[%clk 0:04:20.1]} 19. Ng3 {[%clk 0:03:01.1]} 19...
Qxf3 {[%clk 0:04:19]} 20. Nxf5+ {[%clk 0:03:00]} 20... gxf5 {[%clk 0:04:17.7]}
21. Rxf3 {[%clk 0:02:59.6]} 21... e6 {[%clk 0:04:15.5]} 22. Kg2 {[%clk
0:02:53.4]} 22... Kg6 {[%clk 0:04:14.7]} 23. Rh1 {[%clk 0:02:51.5]} 23... a5
{[%clk 0:04:14.1]} 24. a3 {[%clk 0:02:41.1]} 24... a4 {[%clk 0:04:13]} 25. Re1
{[%clk 0:02:30.4]} 25... Ra5 {[%clk 0:04:11.3]} 26. c4 {[%clk 0:02:25.4]} 26...
c5 {[%clk 0:04:06.3]} 27. Rd1 {[%clk 0:02:10.5]} 27... Rc8 {[%clk 0:04:02.1]}
28. d5 {[%clk 0:02:06.2]} 28... exd5 {[%clk 0:04:01.2]} 29. Rxd5 {[%clk
0:02:04.3]} 29... Ra6 {[%clk 0:04:00.1]} 30. Rf2 {[%clk 0:02:02.6]} 30... Re8
{[%clk 0:03:55.8]} 31. Kf3 {[%clk 0:01:58.8]} 31... Rae6 {[%clk 0:03:43.9]} 32.
Re2 {[%clk 0:01:54.3]} 32... b6 {[%clk 0:03:43]} 33. Rd7 {[%clk 0:01:42.9]}
33... h4 {[%clk 0:03:40.2]} 34. Rd1 {[%clk 0:01:37.3]} 34... Re4 {[%clk
0:02:32.4]} 35. Rd6+ {[%clk 0:01:07.8]} 35... R8e6 {[%clk 0:02:25.4]} 36. Rxe6+
{[%clk 0:00:51.1]} 36... fxe6 {[%clk 0:02:25.3]} 37. Rc2 {[%clk 0:00:49.3]}
37... e5 {[%clk 0:02:21]} 38. Rd2 {[%clk 0:00:41.5]} 38... exf4 {[%clk 0:02:09]}
39. Rd6+ {[%clk 0:00:36.3]} 39... Kxg5 {[%clk 0:02:06.6]} 40. exf4+ {[%clk
0:00:30.5]} 40... Kh5 {[%clk 0:01:58.7]} 41. Rf6 {[%clk 0:00:22.6]} 41... Rxc4
{[%clk 0:01:57.8]} 42. Rxf5+ {[%clk 0:00:21.3]} 42... Kg6 {[%clk 0:01:57.4]} 43.
Rf8 {[%clk 0:00:19.1]} 43... Rc2 {[%clk 0:01:55.2]} 44. Rg8+ {[%clk 0:00:17.7]}
44... Kf7 {[%clk 0:01:54.2]} 45. Rh8 {[%clk 0:00:16.9]} 45... Rxb2 {[%clk
0:01:53.1]} 46. Rxh4 {[%clk 0:00:15.1]} 46... Rb3+ {[%clk 0:01:52.5]} 47. Ke4
{[%clk 0:00:13.7]} 47... Rxa3 {[%clk 0:01:52.1]} 48. Rh6 {[%clk 0:00:13.1]}
48... Rb3 {[%clk 0:01:51]} 49. Rc6 {[%clk 0:00:11.9]} 49... a3 {[%clk
0:01:50.4]} 50. Kf5 {[%clk 0:00:11]} 50... a2 {[%clk 0:01:49.4]} 51. Rc7+ {[%clk
0:00:10.6]} 51... Ke8 {[%clk 0:01:48.8]} 52. Ke6 {[%clk 0:00:09.8]} 52... Rd3
{[%clk 0:01:48.2]} 53. Ra7 {[%clk 0:00:06.4]} 53... Re3+ {[%clk 0:01:47.3]} 54.
Kf6 {[%clk 0:00:05]} 54... Re2 {[%clk 0:01:46.3]} 55. Ra6 {[%clk 0:00:03.9]}
55... c4 {[%clk 0:01:44.8]} 56. f5 {[%clk 0:00:03.5]} 56... c3 {[%clk 0:01:44]}
57. Kg7 {[%clk 0:00:03.1]} 57... Rg2+ {[%clk 0:01:42.7]} 58. Kf6 {[%clk
0:00:01.4]} 58... c2 {[%clk 0:01:42.1]} 59. Ke6 {[%clk 0:00:00.7]} 59... Re2+
{[%clk 0:01:41.4]} 0-1

[Event "Live Chess"]
[Site "Chess.com"]
[Date "2024.06.01"]
[Round "-"]
[White "IanCalvert2"]
[Black "BostonStrangler"]
[Result "1/2-1/2"]
[WhiteElo "1625"]
[BlackElo "2133"]
[TimeControl "300"]
[EndTime "14:21:56 PDT"]
[Termination "Game drawn by repetition"]

1. b3 {[%clk 0:04:53.1]} 1... e5 {[%clk 0:04:55.2]} 2. Bb2 {[%clk 0:04:51.8]}
2... Nc6 {[%clk 0:04:53.8]} 3. e3 {[%clk 0:04:50.1]} 3... d6 {[%clk 0:04:53]} 4.
Nf3 {[%clk 0:04:44.9]} 4... Bd7 {[%clk 0:04:50.1]} 5. d4 {[%clk 0:04:42.5]} 5...
e4 {[%clk 0:04:24.2]} 6. d5 {[%clk 0:04:39.1]} 6... Nce7 {[%clk 0:04:17.3]} 7.
Nfd2 {[%clk 0:04:33.5]} 7... Nxd5 {[%clk 0:04:14.5]} 8. Nxe4 {[%clk 0:04:29.3]}
8... Ngf6 {[%clk 0:04:08.4]} 9. Nxf6+ {[%clk 0:03:46.5]} 9... Nxf6 {[%clk
0:04:05.3]} 10. Nc3 {[%clk 0:03:45.1]} 10... Be7 {[%clk 0:04:03.6]} 11. Nd5
{[%clk 0:03:34.7]} 11... Nxd5 {[%clk 0:03:52.2]} 12. Qxd5 {[%clk 0:03:29.3]}
12... Bf6 {[%clk 0:03:31.2]} 13. Bxf6 {[%clk 0:03:22.4]} 13... Qxf6 {[%clk
0:03:29.6]} 14. Qd4 {[%clk 0:03:21.2]} 14... Qxd4 {[%clk 0:03:23.6]} 15. exd4
{[%clk 0:03:17.6]} 15... O-O {[%clk 0:03:23.5]} 16. Bd3 {[%clk 0:03:14.1]} 16...
Rfe8+ {[%clk 0:03:13.1]} 17. Kd2 {[%clk 0:03:12.4]} 17... Bc6 {[%clk 0:03:07.9]}
18. f3 {[%clk 0:03:09.2]} 18... Re7 {[%clk 0:03:06.4]} 19. Rae1 {[%clk
0:03:06.5]} 19... Rae8 {[%clk 0:03:05.4]} 20. Rxe7 {[%clk 0:03:05.1]} 20... Rxe7
{[%clk 0:03:04.5]} 21. Re1 {[%clk 0:03:03.1]} 21... Rxe1 {[%clk 0:03:01.4]} 22.
Kxe1 {[%clk 0:03:01.8]} 22... h6 {[%clk 0:03:00.6]} 23. Kf2 {[%clk 0:03:00.3]}
23... Kf8 {[%clk 0:02:59.5]} 24. Ke3 {[%clk 0:02:58.9]} 24... Ke7 {[%clk
0:02:58.5]} 25. c4 {[%clk 0:02:56.5]} 25... Bd7 {[%clk 0:02:56.2]} 26. d5 {[%clk
0:02:54.5]} 26... Kf6 {[%clk 0:02:53.2]} 27. f4 {[%clk 0:02:48.1]} 27... g5
{[%clk 0:02:40.9]} 28. g3 {[%clk 0:02:39.3]} 28... Bf5 {[%clk 0:02:39.6]} 29.
Bxf5 {[%clk 0:02:05]} 29... Kxf5 {[%clk 0:02:35.8]} 30. fxg5 {[%clk 0:01:52.9]}
30... Kxg5 {[%clk 0:02:28.5]} 31. Kf3 {[%clk 0:01:46.9]} 31... h5 {[%clk
0:02:17.7]} 32. h3 {[%clk 0:01:40.8]} 32... f5 {[%clk 0:01:50.9]} 33. a3 {[%clk
0:01:28.9]} 33... a6 {[%clk 0:01:40.9]} 34. b4 {[%clk 0:01:25.5]} 34... b6
{[%clk 0:01:09.3]} 35. b5 {[%clk 0:01:11.6]} 35... a5 {[%clk 0:01:01.3]} 36. a4
{[%clk 0:01:07.3]} 36... Kg6 {[%clk 0:00:59.7]} 37. Ke3 {[%clk 0:01:01.1]} 37...
Kg5 {[%clk 0:00:53.5]} 38. Kf3 {[%clk 0:00:57.6]} 38... Kg6 {[%clk 0:00:51.8]}
39. Ke3 {[%clk 0:00:55.7]} 39... Kg5 {[%clk 0:00:33.7]} 40. Kf3 {[%clk
0:00:51.4]} 1/2-1/2